bitfinex/quotes_ETHUSD_20251011
["timestamp","ask_amount","ask_price","bid_price","bid_amount"]
[1760199932279,1.92,3852.2,3852.1,0.1296]
[1760199933011,4.51591921,3852.2,3852.1,0.1296]
[1760199933510,1.92,3852.2,3852.1,0.1296]
[1760199933895,1.92,3852.2,3852.1,0.5576]
[1760199934606,4.94511921,3852.2,3852.1,0.1296]
[1760199935031,1.92,3852.2,3852.1,0.1296]
[1760199935214,1.92,3852.1,3851.6,0.02596323]
[1760199935394,1.92,3852.3,3852.1,0.1296]
[1760199935595,2.59590267,3852.3,3852.1,0.1296]
[1760199935795,4.51591921,3852.2,3852.1,0.1296]
[1760199936727,1.92,3852.1,3851.1,0.428]
[1760199936895,2.59509273,3853.5,3851.1,0.428]
[1760199936896,1.92,3853.2,3851.2,0.428]
[1760199937096,1.92,3852.9,3851.3,2.59649608]
[1760199937425,1.92,3852.2,3851.5,2.59637474]
[1760199938396,1.92,3852.2,3851.6,0.428]
[1760199939038,2.59572674,3852.5,3851.0,2.27031028]
[1760199939039,2.59603061,3852.1,3851.0,2.27031028]
[1760199939203,1.92,3852.2,3851.0,0.428]
[1760199939397,2.59612036,3852.0,3851.0,0.428]
[1760199939613,2.59612036,3852.0,3851.1,2.59666069]
[1760199940034,1.92,3852.0,3851.2,0.428]
[1760199940338,1.92,3852.0,3851.3,2.59652584]
[1760199940499,1.92,3852.0,3851.4,0.428]
[1760199940897,4.51593618,3852.2,3851.4,0.428]
[1760199941338,2.59608982,3852.0,3851.4,0.428]
[1760199941731,1.92,3852.2,3850.9,0.002]
[1760199942041,1.92,3851.4,3850.9,0.43]
[1760199942346,0.4292,3851.3,3850.9,0.002]
[1760199942578,2.59672812,3851.0,3850.9,0.002]
[1760199942779,4.51672812,3851.0,3850.9,0.002]
[1760199942948,4.94592812,3851.0,3850.9,0.002]
[1760199943836,1.92,3851.0,3850.9,0.002]
[1760199944075,1.92,3851.0,3850.9,0.4628]
[1760199944371,4.51672812,3851.0,3850.9,0.002]
[1760199945575,1.92,3851.0,3850.9,0.002]
[1760199946872,4.51672812,3851.0,3850.9,0.1316]
[1760199947954,1.92,3851.0,3850.9,4.3716]
[1760199948734,1.92,3851.0,3850.9,4.8324]
[1760199949869,1.92,3851.0,3850.9,4.3716]
[1760199950889,1.92,3851.0,3850.9,0.1316]
[1760199950890,4.51672812,3851.0,3850.9,0.1316]
[1760199953083,4.94592812,3851.0,3850.9,0.1316]
[1760199953469,4.94592812,3851.0,3850.9,0.002]
[1760199953689,9.70648312,3851.0,3850.9,0.002]
[1760199954795,4.94342812,3851.0,3850.9,0.002]
[1760199955086,8.78239612,3851.0,3850.9,0.002]
[1760199955269,7.21446812,3851.0,3850.9,0.002]
[1760199955592,14.93245112,3851.0,3850.9,0.002]
[1760199955798,7.40442812,3851.0,3850.9,0.002]
[1760199956389,4.94342812,3851.0,3850.9,0.002]
[1760199956789,4.51422812,3851.0,3850.9,0.002]
[1760199956955,1.9175,3851.0,3850.9,0.4628]
[1760199957155,0.001,3852.2,3850.9,0.4628]
[1760199957358,1.92,3851.4,3850.9,0.4628]
[1760199957582,1.92,3851.5,3851.0,0.4608]
[1760199957783,1.92,3851.5,3850.9,0.002]
[1760199957953,1.92,3851.5,3851.1,0.4608]
[1760199958360,2.59637504,3851.6,3850.9,2.5987819]
[1760199958570,2.5963929,3851.5,3851.0,0.26027819]
[1760199958791,2.5963929,3851.5,3851.0,0.72107819]
[1760199959189,2.59638398,3851.6,3851.0,0.72107819]
[1760199959377,1.92,3851.5,3851.0,0.72107819]
[1760199959682,1.92,3851.4,3851.0,0.72107819]
[1760199959891,1.92,3851.4,3851.0,0.26027819]
[1760199960090,1.92,3851.4,3851.1,0.429]
[1760199960285,1.92,3851.7,3851.1,0.429]
[1760199960491,1.92,3851.5,3851.1,0.429]
[1760199960687,2.59640801,3851.5,3851.1,0.32901267]
[1760199960995,1.92,3851.3,3851.1,0.75801267]
[1760199961192,1.92,3851.3,3851.1,0.429]
[1760199961359,2.59653375,3851.3,3850.9,0.002]
[1760199961556,1.92,3851.5,3851.0,0.429]
[1760199961772,1.92,3851.5,3850.9,0.02796795]
[1760199961773,1.921,3852.2,3851.1,0.429]
[1760199962202,2.59639154,3851.5,3851.2,4.24]
[1760199962560,2.59652584,3851.3,3851.2,4.24]
[1760199962891,3.02572584,3851.3,3851.2,4.24]
[1760199963861,4.51652584,3851.3,3851.2,4.24]
[1760199964063,4.51652584,3851.3,3851.2,4.669]
[1760199964064,1.92,3851.3,3851.2,4.669]
[1760199965013,1.92,3851.3,3851.2,4.7986]
[1760199966718,2.59604696,3852.1,3851.3,2.32]
[1760199966876,2.59604696,3852.1,3851.4,9.93396458]
[1760199967078,2.59604696,3852.1,3852.0,0.1296]
[1760199967295,2.59604696,3852.1,3852.0,2.4496]
[1760199968123,0.001,3852.2,3852.0,2.8786]
[1760199968332,0.001,3852.2,3852.1,2.34595986]
[1760199968528,4.51691921,3852.2,3852.1,2.34595986]
[1760199968851,1.921,3852.2,3852.1,2.34595986]
[1760199969195,1.921,3852.2,3852.1,2.77495986]
[1760199969693,0.001,3852.2,3852.1,3.41211585]
[1760199972608,0.001,3852.2,3852.1,3.38615599]
[1760199973640,0.001,3852.2,3852.1,1.06615599]
[1760199973859,1.92,3852.1,3851.3,1.84231028]
[1760199974134,1.92,3852.1,3851.4,0.02596458]
[1760199974337,1.92,3852.1,3850.9,0.002]
[1760199974338,1.92,3851.1,3850.9,0.002]
[1760199974539,4.51672812,3851.0,3850.9,0.002]
[1760199975440,4.94592812,3851.0,3850.9,0.002]
[1760199976220,4.51672812,3851.0,3850.9,0.002]
[1760199976725,12.98547412,3851.0,3850.9,0.002]
[1760199977037,12.37990212,3851.0,3850.9,0.002]
[1760199977611,21.32158412,3851.0,3850.9,0.002]
[1760199977943,21.01233912,3851.0,3850.9,0.002]
[1760199978543,18.61761812,3851.0,3850.9,0.002]
[1760199978739,16.96169512,3851.0,3850.9,0.002]
[1760199979842,26.08398212,3851.0,3850.9,0.002]
[1760199980238,24.84537812,3851.0,3850.9,0.002]
[1760199980436,24.37009512,3851.0,3850.9,0.002]
[1760199980635,21.95498112,3851.0,3850.9,0.002]
[1760199980835,21.30867412,3851.0,3850.9,0.002]
[1760199981278,21.06019312,3851.0,3850.9,0.002]
[1760199981882,22.92176812,3851.0,3850.9,0.002]
[1760199982849,22.92176812,3851.0,3850.5,0.002]
[1760199982850,3.23046298,3850.8,3850.7,1e-08]
[1760199983051,3.23046298,3850.8,3850.4,1e-08]
[1760199983052,5.15066531,3850.5,3850.4,1e-08]
[1760199983247,35.15066531,3850.5,3850.4,1e-08]
[1760199983434,35.57986531,3850.5,3850.4,1e-08]
[1760199984162,30.46942831,3850.5,3850.4,1e-08]
[1760199984364,12.60496531,3850.5,3850.4,1e-08]
[1760199985066,19.87536731,3850.5,3850.4,1e-08]
[1760199986173,23.52862431,3850.5,3850.4,1e-08]
[1760199986540,10.37693831,3850.5,3850.4,1e-08]
[1760199986741,8.34829531,3850.5,3850.4,1e-08]
[1760199987170,4.51706531,3850.5,3850.4,1e-08]
[1760199987564,4.94626531,3850.5,3850.4,1e-08]
[1760199987983,4.51706531,3850.5,3850.4,1e-08]
[1760199988298,2.59706531,3850.5,3850.4,1e-08]
[1760199989190,3.02626531,3850.5,3850.4,1e-08]
[1760199989892,2.59706531,3850.5,3850.4,1e-08]
[1760199990063,4.51706531,3850.5,3850.4,1e-08]
[1760199990868,4.94626531,3850.5,3850.4,1e-08]
[1760199991278,4.51706531,3850.5,3850.4,1e-08]
[1760199993298,4.51706531,3850.5,3850.4,2.32000001]
[1760199995403,1.92,3850.5,3850.4,0.44100001]
[1760199995603,2.59700727,3850.6,3850.4,0.86855001]
[1760199995779,2.59694764,3850.7,3850.5,0.441]
[1760199995986,1.92,3850.6,3850.5,0.441]
[1760199997402,4.51706531,3850.5,3850.4,0.12960001]
[1760200000296,16.39502631,3850.5,3850.4,0.12960001]
[1760200000498,13.73230031,3850.5,3850.4,1e-08]
[1760200000675,20.28730431,3850.5,3850.4,1e-08]
[1760200000876,5.57986531,3850.5,3850.4,1e-08]
[1760200001196,4.94626531,3850.5,3850.4,1e-08]
[1760200001396,4.51706531,3850.5,3850.4,1e-08]
[1760200003021,0.1296,3850.9,3850.4,1e-08]
[1760200003215,0.4302,3851.3,3850.4,1e-08]
[1760200003216,0.001,3851.3,3850.4,0.44990001]
[1760200003415,1.92,3850.7,3850.4,0.44990001]
[1760200003723,1.92,3850.7,3850.5,0.4499]
[1760200003936,2.59699787,3850.6,3850.5,0.4499]
[1760200004095,4.51699787,3850.6,3850.5,0.4499]
[1760200004498,4.51706531,3850.5,3850.4,1e-08]
[1760200005326,2.59700567,3850.6,3850.4,1e-08]
[1760200005623,2.59700567,3850.6,3850.4,0.44990001]
[1760200005834,2.59700567,3850.6,3850.5,0.4499]
[1760200006597,2.59699787,3850.6,3850.5,0.4499]
[1760200007395,2.59706531,3850.5,3850.4,1e-08]
[1760200007915,21.44647521,3850.5,3850.4,1e-08]
[1760200008908,21.01727521,3850.5,3850.4,1e-08]
[1760200009940,4.51706531,3850.5,3850.4,1e-08]
[1760200011146,4.94626531,3850.5,3850.4,1e-08]
[1760200011369,21.44647521,3850.5,3850.4,1e-08]
[1760200012256,21.01727521,3850.5,3850.4,1e-08]
[1760200013151,4.51706531,3850.5,3850.4,0.57950001]
[1760200013355,4.51706531,3850.5,3850.4,0.12960001]
[1760200013531,21.44647521,3850.5,3850.4,1e-08]
[1760200014122,21.01727521,3850.5,3850.4,1e-08]
[1760200014954,21.44647521,3850.5,3850.4,1e-08]
[1760200016432,36.17917621,3850.5,3850.4,1e-08]
[1760200016624,30.76921321,3850.5,3850.4,1e-08]
[1760200017650,9.91100667,3850.2,3850.1,0.002]
[1760200017861,10.36850667,3850.2,3850.1,0.002]
[1760200018239,10.79770667,3850.2,3850.1,0.002]
[1760200018552,5.58006767,3850.2,3850.1,0.002]
[1760200018760,11.41662967,3850.2,3850.1,0.002]
[1760200019753,10.82166067,3850.2,3850.1,0.002]
[1760200020826,13.19101167,3850.2,3850.1,0.002]
[1760200021769,5.58006767,3850.2,3850.1,0.002]
[1760200021933,19.88602367,3850.2,3850.1,0.002]
[1760200022275,19.25242367,3850.2,3850.1,0.002]
[1760200022675,19.33720567,3850.2,3850.1,0.002]
[1760200022965,19.32893767,3850.2,3850.1,0.002]
[1760200023128,19.32893767,3850.2,3850.0,0.002]
[1760200023129,5.28053513,3850.1,3850.0,0.002]
[1760200023461,18.60868713,3850.1,3850.0,0.002]
[1760200023644,19.03788713,3850.1,3850.0,0.002]
[1760200023845,17.77638713,3850.1,3850.0,0.002]
[1760200024072,16.71358713,3850.1,3850.0,0.002]
[1760200024874,16.59888513,3850.1,3850.0,0.002]
[1760200025255,17.02808513,3850.1,3850.0,0.002]
[1760200025882,17.47308513,3850.1,3850.0,0.002]
[1760200026492,17.02808513,3850.1,3850.0,0.002]
[1760200027002,17.33438913,3850.1,3850.0,0.002]
[1760200027297,17.33438913,3850.1,3850.0,4.242]
[1760200027663,15.24353413,3850.1,3850.0,4.242]
[1760200029018,14.77653413,3850.1,3850.0,4.242]
[1760200030200,5.07613513,3850.1,3850.0,4.242]
[1760200030400,4.64693513,3850.1,3850.0,4.242]
[1760200030703,4.51733513,3850.1,3850.0,4.242]
[1760200031405,4.51733513,3850.1,3850.0,4.8276]
[1760200031406,2.59733513,3850.1,3850.0,4.8276]
[1760200031709,2.59721945,3850.3,3850.0,5.31315754]
[1760200031869,0.001,3850.5,3850.2,0.3668]
[1760200032205,2.59713797,3850.4,3850.2,0.3668]
[1760200032404,2.59713797,3850.4,3850.2,0.26317267]
[1760200032613,2.59713797,3850.4,3850.3,0.5856]
[1760200033317,4.51806917,3850.5,3850.3,0.5856]
[1760200033812,0.001,3850.5,3850.4,0.02597132]
[1760200034207,0.001,3850.5,3850.4,0.48197132]
[1760200034828,0.001,3850.5,3850.4,4.85157132]
[1760200034983,0.001,3850.5,3850.4,4.8256]
[1760200036314,0.001,3850.5,3850.4,7.42273276]
[1760200036542,0.001,3850.5,3850.4,5.64735658]
[1760200037420,1.921,3851.3,3851.1,4.237]
[1760200037619,4.51752584,3851.3,3851.2,0.456]
[1760200037786,4.51752584,3851.3,3851.2,4.8226]
[1760200043042,4.51752584,3851.3,3851.2,4.3666]
[1760200043539,4.51752584,3851.3,3851.2,4.8226]
[1760200043736,4.51752584,3851.3,3851.2,4.3666]
[1760200043941,5.1935911,3850.9,3850.0,0.002]
[1760200044240,4.94672584,3851.3,3850.0,0.002]
[1760200044241,4.51733513,3850.1,3850.0,0.002]
[1760200046708,4.51733513,3850.1,3850.0,0.458]
[1760200047440,4.51733513,3850.1,3850.0,0.002]
[1760200047620,4.94653513,3850.1,3850.0,0.002]
[1760200047825,5.58013513,3850.1,3850.0,0.002]
[1760200048033,21.00971213,3850.1,3850.0,0.002]
[1760200048756,3.23113753,3849.8,3849.7,0.002]
[1760200048924,4.51780745,3849.4,3849.3,0.002]
[1760200049119,4.51780745,3849.4,3849.2,0.002]
[1760200049120,5.15147493,3849.3,3849.2,0.002]
[1760200049449,12.73304893,3849.3,3849.2,0.002]
[1760200050026,15.23595293,3849.3,3849.2,0.002]
[1760200050352,14.63992493,3849.3,3849.2,0.002]
[1760200050552,14.00632493,3849.3,3849.2,0.002]
[1760200050863,14.00632493,3849.3,3848.6,0.002]
[1760200050864,30.17416283,3848.7,3848.6,0.002]
[1760200051027,15.590365,3848.3,3847.8,0.002]
[1760200051222,16.529259,3848.3,3847.8,0.002]
[1760200051562,16.957759,3848.3,3847.8,0.002]
[1760200052134,17.63119,3848.3,3847.8,0.002]
[1760200052655,17.335144,3848.3,3847.8,0.002]
[1760200053337,10.19329,3848.3,3847.8,0.002]
[1760200053659,4.51855,3848.3,3847.8,0.002]
[1760200054529,4.51855,3848.3,3847.9,0.1296]
[1760200054924,1.92,3848.3,3848.0,0.4287]
[1760200055123,4.51855,3848.3,3848.2,0.1316]
[1760200055748,1.92,3848.3,3848.2,0.1316]
[1760200055951,4.51855,3848.3,3848.2,0.1316]
[1760200057560,4.51855,3848.3,3848.2,0.002]
[1760200058079,8.366164,3848.3,3848.2,0.002]
[1760200058287,8.164265,3848.3,3848.2,0.002]
[1760200058453,8.797865,3848.3,3848.2,0.002]
[1760200059079,12.027283,3848.3,3848.2,0.002]
[1760200059984,5.58065,3848.3,3848.2,0.002]
[1760200060282,10.96335,3848.3,3848.2,0.002]
[1760200060785,8.602305,3848.3,3848.2,0.002]
[1760200061082,15.590563,3848.3,3848.2,0.002]
[1760200061285,13.220298,3848.3,3848.2,0.002]
[1760200061491,11.152298,3848.3,3848.2,0.002]
[1760200061653,7.834196,3848.3,3848.2,0.002]
[1760200061985,5.58065,3848.3,3848.2,0.002]
[1760200062285,7.95065,3848.3,3848.2,0.002]
[1760200062785,7.688451,3848.3,3848.2,0.002]
[1760200063089,4.51855,3848.3,3848.2,0.002]
[1760200064288,4.94705,3848.3,3848.2,0.002]
[1760200065356,0.6336,3848.0,3847.8,0.002]
[1760200065552,0.6336,3848.0,3847.3,0.1296]
[1760200065553,0.6336,3847.8,3847.3,0.1296]
[1760200065887,4.51909031,3847.5,3847.0,0.1296]
[1760200066471,19.45189731,3847.5,3846.0,0.2171]
[1760200066675,13.11514631,3847.5,3846.0,0.2171]
[1760200066854,11.29345631,3847.5,3846.4,0.455]
[1760200067054,11.29345631,3847.5,3846.0,0.2171]
[1760200067247,11.29345631,3847.5,3846.0,0.6721]
[1760200067788,5.57829031,3847.5,3846.0,0.2171]
[1760200067991,4.51915787,3847.4,3845.8,0.455]
[1760200068197,1.92,3846.2,3845.8,0.455]
[1760200068493,2.59996946,3846.2,3845.8,0.455]
[1760200068988,2.59996946,3846.2,3845.2,2.60058148]
[1760200069293,1.92,3846.4,3845.6,2.60030765]
[1760200069585,2.59996384,3846.3,3845.4,2.60044225]
[1760200069795,2.59996384,3846.3,3845.5,0.455]
[1760200070253,2.59996384,3846.3,3845.5,3.05542429]
[1760200070455,1.92,3846.2,3845.5,0.455]
[1760200070692,0.4256,3846.8,3845.5,0.455]
[1760200070693,1.92,3846.0,3845.5,0.455]
[1760200070879,1.92,3846.0,3845.6,0.30555477]
[1760200071193,2.59955087,3846.9,3845.6,0.30555477]
[1760200071194,3.01898714,3848.2,3845.6,2.90591195]
[1760200071396,0.071,3859.9,3845.6,2.90591195]
[1760200071397,16.0969973,3847.3,3845.7,0.48100306]
[1760200071564,16.0969973,3847.3,3845.7,0.455]
[1760200071565,2.59995727,3846.3,3845.7,0.455]
[1760200071767,2.5999807,3846.2,3845.7,0.455]
[1760200071967,1.92,3845.9,3845.8,0.455]
[1760200072171,1.92,3846.0,3845.4,0.455]
[1760200072353,4.52010738,3846.0,3845.4,0.455]
[1760200072558,1.92,3845.8,3845.4,0.455]
[1760200072857,1.92,3845.8,3845.5,0.455]
[1760200073169,1.92,3846.1,3845.4,2.60048718]
[1760200073373,1.92,3846.1,3845.6,0.455]
[1760200073568,2.60004053,3846.1,3845.7,0.455]
[1760200073771,2.60004053,3846.1,3844.8,11.399]
[1760200073772,2.60032736,3845.7,3845.2,0.455]
[1760200073988,2.60038232,3845.6,3845.2,0.455]
[1760200074291,1.92,3845.4,3845.3,0.455]
[1760200074597,2.60038477,3845.6,3845.3,0.455]
[1760200074908,2.60044618,3845.5,3845.3,0.455]
[1760200075107,2.60033663,3845.7,3845.3,0.455]
[1760200075265,1.92,3845.3,3844.8,0.455]
[1760200075462,2.60054062,3845.4,3844.9,0.457]
[1760200075665,2.60054062,3845.4,3844.9,0.002]
[1760200075960,1.92,3845.3,3845.0,0.455]
[1760200076367,1.92,3845.3,3845.1,0.455]
[1760200076695,2.60044908,3845.5,3845.2,0.1296]
[1760200077004,2.60037352,3845.7,3845.2,0.1296]
[1760200077158,1.92,3845.5,3845.4,0.1296]
[1760200077360,2.60044207,3845.5,3845.4,0.1296]
[1760200077782,1.92,3845.8,3845.4,0.1296]
[1760200078200,1.92,3845.8,3845.7,0.1296]
[1760200078501,1.92,3845.8,3845.7,0.5846]
[1760200078662,0.1296,3846.5,3845.7,0.5846]
[1760200078864,0.5552,3846.8,3845.7,0.5846]
[1760200079198,2.59963085,3846.7,3846.1,0.1296]
[1760200079505,4.51971513,3846.6,3846.1,0.5673]
[1760200079660,1.92,3846.2,3846.1,0.5673]
[1760200080066,2.59984277,3846.4,3846.1,0.5673]
[1760200080264,1.92,3846.3,3846.1,0.5673]
[1760200080496,1.92,3846.3,3846.2,0.4377]
[1760200081198,0.4256,3847.1,3846.2,0.4377]
[1760200081199,18.82582596,3847.3,3846.2,0.5673]
[1760200081398,16.2265973,3847.3,3846.2,0.5673]
[1760200081615,2.59955027,3846.9,3846.8,0.1296]
[1760200081759,0.1296,3847.3,3846.8,0.1296]
[1760200081969,4.51949569,3846.9,3846.8,0.1296]
[1760200082162,1.92,3846.9,3846.8,0.1296]
[1760200082368,1.92,3846.9,3846.8,0.5673]
[1760200082902,0.001,3847.4,3846.8,0.5673]
[1760200083265,2.59941194,3847.1,3846.8,0.4377]
[1760200083664,1.92,3847.0,3846.9,0.4377]
[1760200083860,0.001,3847.4,3846.9,0.4377]
[1760200084066,4.51936055,3847.1,3847.0,0.5673]
[1760200084284,4.51936055,3847.1,3847.0,0.1296]
[1760200084903,4.51936055,3847.1,3847.0,0.5673]
[1760200085269,4.51936055,3847.1,3847.0,0.1296]
[1760200085911,4.51936055,3847.1,3847.0,0.5673]
[1760200086726,1.92,3847.1,3847.0,0.5673]
[1760200087637,4.51936055,3847.1,3847.0,0.5673]
[1760200087807,4.51936055,3847.1,3847.0,0.1296]
[1760200089136,4.51936055,3847.1,3846.1,4.24]
[1760200089137,2.59949569,3846.9,3845.8,0.4377]
[1760200089334,1.92,3846.8,3846.5,0.1296]
[1760200089535,1.92,3845.9,3845.8,0.4377]
[1760200089838,2.60032828,3845.7,3844.9,0.002]
[1760200090135,2.60044765,3845.5,3845.3,0.4377]
[1760200090341,1.92,3845.4,3845.3,0.4377]
[1760200090639,4.52044207,3845.5,3845.4,0.1296]
[1760200095724,1.92,3845.5,3845.4,0.1296]
[1760200095922,1.92,3845.5,3845.4,0.5673]
[1760200096122,1.92,3845.5,3845.4,0.1296]
[1760200096329,4.52044207,3845.5,3845.4,0.1296]
[1760200097530,4.92804207,3845.5,3845.4,0.1296]
[1760200098437,4.52044207,3845.5,3845.4,0.1296]
[1760200098622,4.92804207,3845.5,3845.4,0.1296]
[1760200100149,4.52057732,3845.3,3845.2,0.1316]
[1760200102046,1.92,3845.3,3845.2,0.5693]
[1760200106567,1.92,3845.3,3845.2,3.16994495]
[1760200106775,1.92,3845.3,3845.2,3.74981344]
[1760200108269,1.92,3845.3,3845.2,1.14916849]
[1760200109161,1.92,3845.3,3845.2,3.74981344]
[1760200109540,1.92,3845.3,3845.2,3.77581988]
[1760200110268,1.92,3845.3,3845.2,3.74981344]
[1760200110467,1.92,3845.3,3845.2,1.14916849]
[1760200110649,1.92,3845.3,3845.2,0.5693]
[1760200111244,1.92,3845.3,3845.2,0.5889]
[1760200111443,1.92,3845.3,3845.2,0.1316]
[1760200112370,1.92,3845.3,3845.2,0.5889]
[1760200113071,1.92,3845.3,3845.2,0.61490644]
[1760200113670,1.92,3845.3,3845.2,3.21555139]
[1760200113974,1.92,3845.3,3845.2,0.83502167]
[1760200114179,1.92,3845.3,3845.2,0.1316]
[1760200114342,1.92,3845.3,3845.2,0.5889]
[1760200115687,1.92,3845.3,3845.2,0.1316]
[1760200116067,4.52057732,3845.3,3845.2,0.1316]
[1760200116473,4.92137732,3845.3,3845.2,0.1316]
[1760200116767,5.60868823,3845.3,3845.2,0.1316]
[1760200116955,4.92137732,3845.3,3845.2,0.1316]
[1760200118198,4.52057732,3845.3,3845.2,0.1316]
[1760200119291,1.92,3845.3,3845.2,0.1316]
[1760200119496,4.52057732,3845.3,3845.2,0.1316]
[1760200119988,1.92,3845.3,3845.2,0.1316]
[1760200120793,1.92,3845.3,3845.2,0.5926]
[1760200120991,1.92,3845.3,3845.2,0.83909174]
[1760200121291,1.92,3845.3,3845.2,0.1316]
[1760200121787,1.92,3845.3,3845.2,0.5926]
[1760200122573,1.92,3845.3,3845.2,0.1316]
[1760200122879,1.92,3845.3,3845.2,0.15760644]
[1760200123093,30.93162566,3845.3,3845.2,0.002]
[1760200123299,24.76701362,3845.3,3845.2,0.002]
[1760200123979,21.59927462,3845.3,3845.2,0.002]
[1760200124208,27.08783662,3845.3,3845.2,0.002]
[1760200124670,26.85041862,3845.3,3845.2,0.002]
[1760200125167,27.06163762,3845.3,3845.2,0.002]
[1760200125568,35.15424495,3845.2,3845.1,1e-08]
[1760200125802,33.06280812,3845.2,3845.1,1e-08]
[1760200126008,26.28311295,3845.2,3845.1,1e-08]
[1760200126172,20.09640095,3845.2,3845.1,1e-08]
[1760200126999,30.25271725,3845.2,3845.1,1e-08]
[1760200127195,36.83471225,3845.2,3845.1,1e-08]
[1760200127797,36.93909188,3845.2,3845.1,1e-08]
[1760200128306,42.00759688,3845.2,3845.1,1e-08]
[1760200128607,34.84693888,3845.2,3845.1,1e-08]
[1760200129175,37.94803688,3845.2,3845.1,1e-08]
[1760200129371,38.63534779,3845.2,3845.1,1e-08]
[1760200129577,37.94803688,3845.2,3845.1,1e-08]
[1760200130308,40.35542588,3845.2,3845.1,1e-08]
[1760200130518,30.29492188,3845.2,3845.1,1e-08]
[1760200130751,30.19054225,3845.2,3845.1,1e-08]
[1760200131201,37.67634525,3845.2,3845.1,1e-08]
[1760200131399,34.00901325,3845.2,3845.1,1e-08]
[1760200131603,11.71849523,3845.0,3844.9,0.002]
[1760200132003,10.00678723,3845.0,3844.9,0.002]
[1760200132203,10.91187123,3845.0,3844.9,0.002]
[1760200132916,10.47249623,3845.0,3844.9,0.002]
[1760200133111,5.50248023,3845.0,3844.9,0.002]
[1760200133420,11.98368123,3845.0,3844.9,0.002]
[1760200133630,5.15444787,3844.9,3844.8,0.002]
[1760200133843,24.93507587,3844.9,3844.8,0.002]
[1760200133995,25.28317587,3844.9,3844.8,0.002]
[1760200134326,25.45727987,3844.9,3844.8,0.002]
[1760200134521,18.83817787,3844.9,3844.8,0.002]
[1760200134887,14.14686587,3844.9,3844.8,0.002]
[1760200135205,11.44446887,3844.9,3844.8,0.002]
[1760200135407,11.54884633,3844.9,3844.8,0.002]
[1760200136319,13.84298833,3844.9,3844.8,0.002]
[1760200136527,12.90325333,3844.9,3844.8,0.002]
[1760200136895,12.35002533,3844.9,3844.8,0.002]
[1760200137227,12.32867133,3844.9,3844.8,0.002]
[1760200137627,8.17610933,3844.9,3844.8,0.002]
[1760200137920,5.60692533,3844.9,3844.8,0.002]
[1760200138520,4.52084787,3844.9,3844.8,0.002]
[1760200141742,2.60084787,3844.9,3844.8,0.477]
[1760200141935,19.83499587,3844.9,3844.8,0.002]
[1760200142100,22.01508066,3844.9,3844.8,0.002]
[1760200142297,22.64868066,3844.9,3844.8,0.002]
[1760200142701,20.06154782,3844.6,3844.1,0.002]
[1760200142901,4.52105082,3844.6,3844.1,0.002]
[1760200143119,20.04835794,3844.6,3844.1,0.002]
[1760200143303,16.79205294,3844.6,3844.1,0.002]
[1760200143498,10.07380894,3844.6,3844.1,0.002]
[1760200144003,10.28518585,3844.6,3844.1,0.002]
[1760200144254,9.15195885,3844.6,3844.1,0.002]
[1760200145243,13.93932585,3844.6,3844.1,0.002]
[1760200145844,13.23805085,3844.6,3844.1,0.002]
[1760200146073,6.11655385,3844.6,3844.1,0.002]
[1760200146379,12.88452285,3844.6,3844.1,0.002]
[1760200146577,12.25092285,3844.6,3844.1,0.002]
[1760200147143,9.70439085,3844.6,3844.1,0.002]
[1760200148037,11.05282185,3844.6,3844.1,0.002]
[1760200148876,1.92,3844.3,3844.1,0.002]
[1760200149081,28.17792652,3844.2,3844.1,0.002]
[1760200149326,28.60822652,3844.2,3844.1,0.002]
[1760200149779,25.85500614,3844.1,3844.0,0.002]
[1760200149964,24.42807814,3844.1,3844.0,0.002]
[1760200150278,23.53238126,3844.1,3844.0,0.002]
[1760200151070,23.53238126,3844.1,3841.9,4.90609999]
[1760200151071,2.60276202,3842.1,3841.6,0.2175]
[1760200151279,2.60260781,3842.3,3842.2,0.0016]
[1760200151484,3.03288253,3842.4,3841.5,0.475]
[1760200151773,2.60282853,3842.0,3841.6,0.0016]
[1760200151933,2.60288515,3841.9,3841.6,0.0016]
[1760200152142,2.60281698,3842.0,3841.6,0.0016]
[1760200152477,3.03289246,3842.4,3841.6,0.0016]
[1760200152649,1.92,3842.3,3841.6,0.4766]
[1760200152974,1.92,3842.3,3841.7,0.02731014]
[1760200152975,2.6026634,3842.3,3841.7,0.02731014]
[1760200153203,2.6026864,3842.2,3841.8,0.31054514]
[1760200153403,2.6026864,3842.2,3841.9,0.00128]
[1760200153710,2.60260781,3842.3,3841.9,0.02730878]
[1760200154003,4.52274329,3842.1,3842.0,0.0012]
[1760200154174,1.92,3842.0,3841.1,0.2175]
[1760200154379,2.60307476,3841.7,3841.6,0.00096]
[1760200154599,2.60308696,3841.6,3841.1,0.6925]
[1760200154904,2.60334488,3841.3,3841.2,0.475]
[1760200155110,2.60334488,3841.3,3840.8,0.2175]
[1760200155111,2.60348419,3841.1,3840.8,0.2175]
[1760200155270,2.60348867,3841.0,3840.9,0.475]
[1760200155469,2.60355645,3840.9,3840.7,0.475]
[1760200155698,2.60308204,3841.6,3840.8,0.475]
[1760200155898,2.60335613,3841.2,3840.8,0.475]
[1760200156086,2.60354624,3841.0,3840.8,0.475]
[1760200156286,2.60335613,3841.2,3840.8,0.475]
[1760200156496,2.60350044,3841.0,3840.8,0.475]
[1760200156690,2.60355645,3840.9,3840.8,0.475]
[1760200156905,2.60355645,3840.9,3840.2,0.475]
[1760200157482,2.60362474,3840.8,3840.2,0.475]